Cogmind - Beta 16 @@@ ROGUE MODE // 2025.12.18 @ 20:41:41 // Winter2019/RPGLIKE Player: Gallgagger Result: Destroyed by Micro Antimatter Reactor chain reaction Performance ------------- Evolutions (4) 2000 Regions Visited (21) 4200 Robots Destroyed (786) 3930 Value Destroyed (37855) 37855 Prototype IDs (50) 1000 Alien Tech Used (1) 200 Bonus (26310) 26310 TOTAL SCORE: 75495 Bonus ------- Triggered High Security 1500 High Alert Combat Kills 22624 Follower Combat Kills 809 Entered Garrisons 800 Met Data Miner 300 Acquired ECA 300 Friendly Fire -23 Cogmind --------- Core Integrity 0/1150 Matter 293/300 Energy 550/550 System Corruption 5% Temperature Cool (0) Movement Flying (23) Location -6/Extension Parts ------- > --- POWER (2) -------- Micro Nuclear Core (fused) F-cell Engine > --- PROPULSION (5) --- Improved Cesium-ion Thruster Improved Cesium-ion Thruster Cooled VTOL Module Cooled VTOL Module Cooled VTOL Module > --- UTILITY (8) ------ Gravity Neutralizer Advanced Signal Interpreter Improved Armor Integrity Analyzer Weapon Cycler Weapon Cycler Graphene Brace Trap Reconfigurator > --- WEAPON (4) ------- Cooled Plasma Cannon Cooled Plasma Cannon Cooled Plasma Cannon > --- INVENTORY (3) ---- Encrypted Comm Array Peak State ------------ > --- POWER ------------ Micro Nuclear Core F-cell Engine > --- PROPULSION ------- Improved Cesium-ion Thruster Improved Cesium-ion Thruster Cooled VTOL Module Cooled VTOL Module Cooled VTOL Module > --- UTILITY ---------- Gravity Neutralizer Advanced Signal Interpreter Improved Armor Integrity Analyzer Improved Particle Charger Weapon Cycler Weapon Cycler Graphene Brace Trap Reconfigurator > --- WEAPON ----------- Cooled Plasma Cannon Cooled Plasma Cannon Cooled Plasma Cannon Missile Launcher > --- INVENTORY -------- Improved VTOL Module Cooled VTOL Module Encrypted Comm Array [Rating: 104] Favorites ----------- Power Micro Nuclear Core Engine Cooled Ion Engine Power Core Micro Nuclear Core Propulsion Flight Unit Wheel Wheel Flight Unit Flight Unit Utility Hardened Light Armor Plating Device Trap Reconfigurator Processor Advanced Signal Interpreter Protection Hardened Light Armor Plating Weapon Minigun Energy Gun Advanced Beam Rifle Energy Cannon Cooled Plasma Cannon Ballistic Gun Minigun Launcher Missile Launcher Build | -11 -10 -10 -9 -9 -9 -8 -8 -8 -8 -8 -8 -8 -7 -7 -7 -7 -6 -6 -6 -6 -6 ------- Run | Yrd Mat Min Mat Min Exi Min Mat Gar Mat Gar Mat Gar Fac Low Low Dat Pro Fac Gar Fac Ext Slots Evolved 15 | 3 4 1 2 . . 1 . 2 . . 1 . . . . . . 1 . . . Power 1 | . . . 1 . . . . . . . . . . . . . . . . . . Propulsion 4 | 1 1 1 . . . 1 . . . . . . . . . . . . . . . Utility 7 | 1 2 . 1 . . . . 1 . . 1 . . . . . . 1 . . . Weapon 3 | 1 1 . . . . . . 1 . . . . . . . . . . . . . Parts Attached 88 | 7 9 2 10 3 2 . 1 1 6 2 3 1 10 4 . . . 6 3 17 1 Power 6 | 1 . . 2 . 1 . . . . 1 . . . . . . . . . 1 . Engine 4 | 1 . . 2 . . . . . . . . . . . . . . . . 1 . Core 2 | . . . . . 1 . . . . 1 . . . . . . . . . . . Reactor . | . . . . . . . . . . . . . . . . . . . . . . Propulsion 20 | 2 6 1 . . . . . 1 1 . 2 . 3 . . . . . . 4 . Treads . | . . . . . . . . . . . . . . . . . . . . . . Leg . | . . . . . . . . . . . . . . . . . . . . . . Wheel 2 | 2 . . . . . . . . . . . . . . . . . . . . . Hover . | . . . . . . . . . . . . . . . . . . . . . . Flight 18 | . 6 1 . . . . . 1 1 . 2 . 3 . . . . . . 4 . Utility 32 | 2 2 . 3 2 1 . . . 2 1 . 1 4 4 . . . 5 1 3 1 Device 19 | 2 . . . 1 1 . . . 2 1 . . 2 2 . . . 4 . 3 1 Storage . | . . . . . . . . . . . . . . . . . . . . . . Processor 4 | . . . . . . . . . . . . 1 1 . . . . 1 1 . . Hackware . | . . . . . . . . . . . . . . . . . . . . . . Protection 9 | . 2 . 3 1 . . . . . . . . 1 2 . . . . . . . Artifact . | . . . . . . . . . . . . . . . . . . . . . . Weapon 30 | 2 1 1 5 1 . . 1 . 3 . 1 . 3 . . . . 1 2 9 . Energy Gun 10 | . 1 . 1 . . . . . 2 . 1 . 2 . . . . 1 2 . . Energy Cannon 5 | . . . . . . . . . . . . . . . . . . . . 5 . Ballistic Gun 12 | 2 . 1 4 1 . . 1 . 1 . . . 1 . . . . . . 1 . Ballistic Cannon . | . . . . . . . . . . . . . . . . . . . . . . Launcher 3 | . . . . . . . . . . . . . . . . . . . . 3 . Special Weapon . | . . . . . . . . . . . . . . . . . . . . . . Impact Weapon . | . . . . . . . . . . . . . . . . . . . . . . Slashing Weapon . | . . . . . . . . . . . . . . . . . . . . . . Piercing Weapon . | . . . . . . . . . . . . . . . . . . . . . . Special Melee Weapon . | . . . . . . . . . . . . . . . . . . . . . . Unidentified Prototypes 17 | . . . 3 1 . . . . 1 . 2 . 4 . 1 . . 1 . 4 . Corrupted Parts 1 | . . 1 . . . . . . . . . . . . . . . . . . . System Corruption 4 | . . 4 . . . . . . . . . . . . . . . . . . . Parts Lost 5 | . . . . . . . . . . . . . . . . . . . . 4 1 Power . | . . . . . . . . . . . . . . . . . . . . . . Propulsion . | . . . . . . . . . . . . . . . . . . . . . . Utility 4 | . . . . . . . . . . . . . . . . . . . . 3 1 Weapon 1 | . . . . . . . . . . . . . . . . . . . . 1 . Highest Loss Streak 2 | . . . . . . . . . . . . . . . . . . . . 2 1 To Critical Strikes . | . . . . . . . . . . . . . . . . . . . . . . Average Backups 1 | . . . . 1 1 1 1 1 2 2 2 2 1 2 3 3 3 3 3 2 2 Power . | . . . . . . . . . . . . . . . . . . . . . . Propulsion . | . . . . . 1 1 1 . . . . . . . . . . . . . 1 Utility 1 | . . . . . . . . . 2 2 2 2 1 2 2 2 2 2 2 1 . Weapon . | . . . . . . . . . . . . . . . . . . . . . . Tool/Special . | . . . . . . . . . . . . . . . . . . . . . . Unused Backups 6 | . . . . . 1 . . 1 . . . . 2 . . . . 1 . 1 . Power . | . . . . . . . . . . . . . . . . . . . . . . Propulsion 2 | . . . . . 1 . . 1 . . . . . . . . . . . . . Utility 4 | . . . . . . . . . . . . . 2 . . . . 1 . 1 . Weapon . | . . . . . . . . . . . . . . . . . . . . . . Tool/Special . | . . . . . . . . . . . . . . . . . . . . . . Average Slot Usage (%) 97 | . 99 100 98 92 98 100 93 93 99 100 98 98 99 100 100 100 100 99 100 91 94 Engine 4 | . 12 8 11 14 8 7 6 5 5 3 . . . . . . . . . 1 5 Core 6 | . . . . . 5 7 6 5 5 6 11 11 11 11 11 11 11 10 10 8 5 Wheel 2 | . 20 . . . . . . . . . . . . . . . . . . . . Flight 25 | . 6 30 31 28 28 28 26 26 29 29 28 27 27 27 27 27 27 26 26 26 26 Device 23 | . 24 16 15 14 19 21 20 19 22 23 22 22 29 27 27 27 27 30 26 26 28 Processor 2 | . . . . . . . . . . . . 3 2 5 5 5 5 5 9 10 10 Protection 8 | . 9 16 15 14 14 14 13 12 10 11 11 11 5 5 5 5 5 5 5 2 . Energy Gun 6 | . 1 8 7 3 . . . . 4 11 11 11 11 11 11 11 11 10 14 4 . Energy Cannon 1 | . . . . . . . . . . . . . . . . . . . . 5 15 Ballistic Gun 13 | . 24 16 15 17 21 21 20 20 17 11 11 11 11 11 11 11 11 10 5 1 . Peak Build Rating 104 | 9 14 20 27 38 36 36 37 40 54 56 61 64 80 82 81 81 81 88 95 102 104 Average Rating 56 | 4 10 16 22 25 34 36 36 37 49 54 60 63 77 80 80 81 81 86 93 92 99 On Entrance 52 | . 9 14 20 25 26 36 36 37 40 54 56 61 64 80 81 81 81 81 88 95 99 Avg Prop Armor Cover (%) 4 | . 4 . . . . . . . . . . . . . . . . . . . . Naked Turns . | . . . . . . . . . . . . . . . . . . . . . . Heaviest Build 56 | 11 18 20 37 37 37 36 36 39 40 42 41 40 44 46 46 46 46 47 47 52 56 Greatest Support 59 | 20 25 27 37 37 37 37 37 41 42 42 44 44 47 49 47 47 47 48 48 59 59 Greatest Overweight (x) 1 | 1 1 . . . . . . . . . . . . . . . . . . . . Average Overweight (x) . | . . . . . . . . . . . . . . . . . . . . . . Largest Inventory Capacity 3 | 2 2 2 2 2 2 2 2 2 2 2 2 2 3 3 3 3 3 3 3 3 3 Average Capacity 2 | 2 2 2 2 2 2 2 2 2 2 2 2 2 2 3 3 3 3 3 3 3 3 Most Carried 3 | . 2 2 2 2 2 1 2 2 2 2 2 2 3 3 3 3 3 3 3 3 3 Average Carried 2 | . 1 2 1 1 1 1 1 1 2 2 2 2 2 3 3 3 3 3 3 2 2 Final Capacity 3 | 2 2 2 2 2 2 2 2 2 2 2 2 2 3 3 3 3 3 3 3 3 3 Final Carried 3 | . 2 2 2 2 1 1 2 2 2 2 2 2 3 3 3 3 3 3 3 3 1 Class Distribution -------------------- 54% | Sprinter 29% | Scavenger-Sprinter 10% | Mutant Dominant Class ---------------- Mutant | -10/Materials Sprinter | -10/Mines Scavenger-Sprinter | -9/Materials Sprinter | -9/Mines Sprinter | -9/Exiles Sprinter | -8/Mines Sprinter | -8/Materials Sprinter | -8/Garrison Scavenger-Sprinter | -8/Materials Scavenger-Sprinter | -8/Garrison Scavenger-Sprinter | -8/Materials Scavenger-Sprinter | -8/Garrison Sprinter | -7/Factory Sprinter | -7/Lower Caves Sprinter | -7/Lower Caves Sprinter | -7/Data Miner Sprinter | -6/Proximity Caves Sprinter | -6/Factory Sprinter | -6/Garrison Sprinter | -6/Factory Sprinter | -6/Extension Resources | -11 -10 -10 -9 -9 -9 -8 -8 -8 -8 -8 -8 -8 -7 -7 -7 -7 -6 -6 -6 -6 -6 ----------- Run | Yrd Mat Min Mat Min Exi Min Mat Gar Mat Gar Mat Gar Fac Low Low Dat Pro Fac Gar Fac Ext Matter Collected 12629 | 280 828 141 1017 524 114 276 90 1488 1238 725 276 630 1619 280 67 . 478 634 510 1326 88 Remotely . | . . . . . . . . . . . . . . . . . . . . . . Salvage Created 31324 | 157 1118 364 2329 561 89 187 133 1459 1998 1304 714 1823 4255 927 21 . 1482 1585 1524 5653 3641 Parts 1540 | 11 106 25 130 33 9 28 10 102 106 72 50 82 222 25 . . 61 73 84 221 90 Haulers Intercepted 12 | . 1 . 5 . . . . . 1 . 2 . 1 . . . . . . 2 . Recyclers Shooed 5 | 1 . . . . . . . . . . 1 . . . . . . 3 . . . Parts Field Recycled . | . . . . . . . . . . . . . . . . . . . . . . Retrieved Matter . | . . . . . . . . . . . . . . . . . . . . . . Parts Self-Destructed 88 | . . . . . . . . . . . . . . 17 8 . 63 . . . . Prevented . | . . . . . . . . . . . . . . . . . . . . . . Parts Restored . | . . . . . . . . . . . . . . . . . . . . . . Kills | -11 -10 -10 -9 -9 -9 -8 -8 -8 -8 -8 -8 -8 -7 -7 -7 -7 -6 -6 -6 -6 -6 ------- Run | Yrd Mat Min Mat Min Exi Min Mat Gar Mat Gar Mat Gar Fac Low Low Dat Pro Fac Gar Fac Ext Combat Hostiles Destroyed 730 | . 41 15 46 19 . 11 3 39 48 31 20 41 95 14 . . 31 32 39 134 71 Guns 540 | . 41 15 46 19 . 11 3 39 48 31 20 41 90 14 . . 31 31 39 21 . Cannons 127 | . . . . . . . . . . . . . . . . . . . . 64 63 AOE 51 | . . . . . . . . . . . . . 3 . . . . . . 48 . Classes Destroyed 26 | 2 6 . 4 1 . 1 . 1 2 2 1 . 3 1 . . 1 . . 1 . Worker 8 | . 2 . 1 . . . . . 1 . . . . . . . . 3 . 1 . Builder 6 | . 1 . 1 . . . . . 1 . 1 . . . . . . 2 . . . Tunneler 5 | 3 1 . . . . . . . 1 . . . . . . . . . . . . Hauler 12 | . 1 . 5 . . . . . 1 . 2 . 1 . . . . . . 2 . Recycler 4 | 1 . 1 1 . . . . . . . . . . . . . . . . 1 . Mechanic 9 | . . . . . . . . . . . . . 2 . . . . . . 6 1 Operator 6 | . . . . . . . . . . . 1 . . . . . . 1 . 3 1 Drone 1 | . . . . . . . . . . . . . 1 . . . . . . . . Watcher 8 | . . . 1 . . . . . . 1 1 . 1 . . . . 1 1 1 1 Swarmer 112 | . 12 11 3 3 . 10 . 3 6 4 8 3 4 3 . . 4 4 19 4 11 Cutter 6 | . . . . . . . . . 2 . . 1 3 . . . . . . . . Saboteur 7 | . . . . . . . . . . . . . . . . . . . . 6 1 Grunt 301 | . 26 4 31 9 . . . 19 27 9 8 23 37 2 . . 12 14 6 49 25 Brawler 39 | . . . 1 1 . . . 1 1 1 . 2 9 2 . . 5 . . 13 3 Duelist 35 | . . . 1 1 . . . . 1 . . . 11 1 . . 5 . 1 10 4 Protector 12 | . . . . . . . . . . . . . 4 . . . . . . 4 4 Sentry 106 | . . . 10 2 . . 1 11 8 7 4 4 8 2 . . 2 5 6 31 5 Demolisher 7 | . . . . . . . . . . 1 . . . . . . . 1 . 1 4 Specialist 6 | . . . . . . . . . . 1 . . . . . . . . . . 5 Hunter 46 | . . . . . . 1 2 2 1 3 . 1 10 . . . 2 6 3 12 3 Programmer 34 | . . . . . . . . 3 . 5 . 8 7 . . . . . 3 4 4 Heavy 4 | . . . . . . . . . 2 . . . 1 . . . . 1 . . . Behemoth 5 | . . . . . . . . . . . . . . . . . 1 1 1 . 2 Subdweller 3 | . 3 . . . . . . . . . . . . . . . . . . . . Assembled 2 | . . . . 2 . . . . . . . . . . . . . . . . . Thug 1 | . . . . . . . . . . . . . . 1 . . . . . . . Fireman 3 | . . . . . . . . . . . . . . 3 . . . . . . . Best Kill Streak 54 | 4 8 8 14 4 . 6 3 8 11 5 19 12 19 11 . . 9 9 12 37 54 Combat Bots Only 53 | . 6 8 11 4 . 6 3 8 8 5 12 12 18 11 . . 9 6 12 34 53 Max Kills in Single Turn 4 | 1 2 2 2 2 . 2 1 2 3 2 2 2 2 2 . . 3 4 2 4 2 Gunslinging 2 | . . 1 1 1 . 1 . 1 1 1 1 1 1 1 . . 2 1 1 . . Exploded 4 | . . . . . . . . . . . . . 1 . . . . . . 4 . Melee . | . . . . . . . . . . . . . . . . . . . . . . Uniques/NPCs Destroyed 1 | . . . . 1 . . . . . . . . . . . . . . . . . YI-UF0 (-9/Mines) Combat | -11 -10 -10 -9 -9 -9 -8 -8 -8 -8 -8 -8 -8 -7 -7 -7 -7 -6 -6 -6 -6 -6 -------- Run | Yrd Mat Min Mat Min Exi Min Mat Gar Mat Gar Mat Gar Fac Low Low Dat Pro Fac Gar Fac Ext Hostile Shots Fired 2622 | . 163 36 130 51 . 49 15 130 123 107 30 130 381 29 . . 101 154 182 629 182 Missed 1190 | . 48 17 52 19 . 17 7 52 49 38 10 52 196 10 . . 51 72 85 325 90 Hits 1432 | . 115 19 78 32 . 32 8 78 74 69 20 78 185 19 . . 50 82 97 304 92 Melee 23 | . . . . 2 . . 1 . 3 . . 1 10 1 . . . . 1 1 3 Projectile 1409 | . 115 19 78 30 . 32 7 78 71 69 20 77 175 18 . . 50 82 96 303 89 AOE 22 | . . 1 . 8 . . . . 1 5 . . 3 . . . . 1 . 2 1 Critical Strikes 55 | . 2 . 4 . . . 1 5 8 6 1 5 6 1 . . 1 2 1 10 2 Actively Blocked 40 | . . . . . . . . . 5 6 1 5 6 1 . . 1 2 1 10 2 Part Disruptions 1 | . . . . . . . . . . . . . . . . . . . . . 1 Damage Taken 19980 | . 1212 233 986 605 . 352 159 1143 1501 964 321 1184 2696 285 . . 707 1406 1157 3569 1500 Core 14564 | . 932 160 638 396 . 227 92 817 1019 653 232 795 2011 227 . . 533 1072 857 2680 1223 Absorbed by Shields 91 | . . . . . . . . 8 . 46 . . . . . . . . . . 37 Redirected to Core 11835 | . 697 133 464 358 . 180 92 670 841 584 214 654 1662 146 . . 411 858 736 2202 933 Redirected to Shielding 50 | . 9 11 30 . . . . . . . . . . . . . . . . . . Ignored by Resistances 643 | . . . . . . . . . . . . . . . . . 72 173 195 203 . Core Remaining (%) 94 | 100 . 93 . . . 88 . . . . . 93 . . . . 100 . . . . Volleys Fired 1600 | 7 116 18 115 46 9 21 8 168 90 80 27 80 198 22 5 . 62 73 97 255 103 Largest 4 | 2 3 3 3 3 3 3 3 4 4 4 4 4 4 4 4 . 4 4 4 3 3 Hottest 248 | 40 105 105 121 111 69 69 71 94 160 160 166 166 186 186 186 . 186 186 248 200 105 Shots Fired 4733 | 14 243 54 329 132 27 63 24 375 357 310 108 300 726 89 17 . 244 289 298 434 300 Gun 4166 | 14 243 54 329 132 27 63 24 375 357 310 108 300 726 89 17 . 244 289 298 167 . Cannon 502 | . . . . . . . . . . . . . . . . . . . . 202 300 Launcher 65 | . . . . . . . . . . . . . . . . . . . . 65 . Special . | . . . . . . . . . . . . . . . . . . . . . . Kinetic 2575 | 14 232 36 230 116 27 63 24 375 255 160 54 149 360 45 10 . 122 144 102 57 . Thermal 2093 | . 11 18 99 16 . . . . 102 150 54 151 366 44 7 . 122 145 196 312 300 Explosive 65 | . . . . . . . . . . . . . . . . . . . . 65 . Electromagnetic . | . . . . . . . . . . . . . . . . . . . . . . Robot Hit Streak 46 | 4 17 8 24 26 13 10 17 39 42 33 19 40 42 46 11 . 32 42 39 31 38 Robot Miss Streak 7 | 1 4 3 3 3 1 2 1 3 5 3 3 2 2 2 3 . 7 3 2 5 1 Penetration Max . | . . . . . . . . . . . . . . . . . . . . . . Secondary Targets 151 | . 2 5 8 1 . 6 1 8 11 5 5 14 37 4 . . 17 10 16 1 . Max Gunslinging Chain 2 | . 1 1 1 1 . 1 1 1 2 1 1 1 2 1 . . 2 1 1 1 . Shots Hit Robots 3260 | 11 153 34 229 86 18 40 22 216 276 167 68 201 530 71 4 . 193 223 180 330 208 Core Hits 1500 | 5 65 20 85 35 6 17 8 80 100 58 33 75 215 27 2 . 65 80 64 361 99 Critical Kills 16 | . . . 1 . . . . 1 2 . . . 1 . . . . . 1 2 8 Critical Parts Destroyed 14 | . 1 1 1 1 1 . . 2 1 . . 2 . . . . 1 2 1 . . Critical Strikes 131 | . 2 3 3 1 1 . . 3 9 5 1 18 27 7 . . 11 17 9 6 8 Burn 100 | . 1 2 1 . . . . . 6 5 1 15 26 7 . . 10 15 7 4 . Meltdown 9 | . . . . . . . . . . . . . . . . . . . . 1 8 Destroy 22 | . 1 1 2 1 1 . . 3 3 . . 3 1 . . . 1 2 2 1 . Melee Attacks . | . . . . . . . . . . . . . . . . . . . . . . Impact . | . . . . . . . . . . . . . . . . . . . . . . Slashing . | . . . . . . . . . . . . . . . . . . . . . . Piercing . | . . . . . . . . . . . . . . . . . . . . . . Sneak Attacks . | . . . . . . . . . . . . . . . . . . . . . . Combat Hostiles . | . . . . . . . . . . . . . . . . . . . . . . Follow-up Attacks . | . . . . . . . . . . . . . . . . . . . . . . Damage Inflicted 92440 | 137 2049 477 3823 1346 304 574 271 3474 5314 3739 1588 4887 13565 1643 98 . 4922 6335 5373 22212 10309 Guns 62908 | 137 2049 477 3823 1346 304 574 271 3474 5314 3739 1588 4887 13194 1643 98 . 4922 5677 5373 4018 . Cannons 19961 | . . . . . . . . . . . . . . . . . . . . 9652 10309 Explosions 9571 | . . . . . . . . . . . . . 371 . . . . 658 . 8542 . Melee . | . . . . . . . . . . . . . . . . . . . . . . Ramming . | . . . . . . . . . . . . . . . . . . . . . . Kinetic 30214 | 137 1908 270 2730 1159 304 574 271 3474 3521 1494 541 1972 5130 709 40 . 1805 2105 985 1085 . Thermal 53531 | . 141 207 1093 187 . . . . 1793 2245 1047 2915 8183 934 58 . 3117 4230 4388 12684 10309 Explosive 8534 | . . . . . . . . . . . . . 252 . . . . . . 8282 . Electromagnetic 161 | . . . . . . . . . . . . . . . . . . . . 161 . Impact . | . . . . . . . . . . . . . . . . . . . . . . Slashing . | . . . . . . . . . . . . . . . . . . . . . . Piercing . | . . . . . . . . . . . . . . . . . . . . . . Highest Corruption 16 | . . 4 . . . . . 1 1 7 8 16 4 4 4 4 4 . 3 5 5 Average Corruption 4 | . . 4 . . . . . 1 1 3 7 13 2 4 4 4 4 . 2 4 5 Corruption Purged . | . . . . . . . . . . . . . . . . . . . . . . Corruption Blocked . | . . . . . . . . . . . . . . . . . . . . . . Effects 171 | . . 6 . . . . . 2 8 15 8 43 2 12 5 . 9 . 8 34 19 Message Errors 31 | . . 3 . . . . . 1 2 3 2 4 . 5 1 . . . 2 6 2 Matter Fused 34 | . . 3 . . . . . . 1 5 3 6 1 1 1 . 1 . 3 3 6 Heat Flow Errors 19 | . . . . . . . . 1 . 2 . 2 . . 2 . 5 . . 5 2 Energy Discharges 14 | . . . . . . . . . . . 1 2 . 2 . . . . 1 5 3 Parts Rejected 9 | . . . . . . . . . 2 1 1 2 . . . . . . . 3 . Parts Fused 3 | . . . . . . . . . . . 1 . . . . . . . 1 1 . Data Loss (minor) 23 | . . . . . . . . . 3 2 . 10 . 2 . . 1 . . 3 2 Data Loss (major) 7 | . . . . . . . . . . . . 2 . 1 . . . . 1 2 1 Misfires 3 | . . . . . . . . . . 1 . . . 1 . . . . . 1 . Alerts 2 | . . . . . . . . . . . . 1 . . 1 . . . . . . Weapon Failures 26 | . . . . . . . . . . 1 . 14 1 . . . 2 . . 5 3 Overload Shots 1 | . . . . . . . . . . . . . . . . . . . . 1 . Overflow Damage 517 | . . . . . . . . . . . . . . . . . . 113 . 182 222 Projectiles 291 | . . . . . . . . . . . . . . . . . . . . 69 222 Explosions 226 | . . . . . . . . . . . . . . . . . . 113 . 113 . Melee . | . . . . . . . . . . . . . . . . . . . . . . Knockbacks . | . . . . . . . . . . . . . . . . . . . . . . Impact . | . . . . . . . . . . . . . . . . . . . . . . Kinetic . | . . . . . . . . . . . . . . . . . . . . . . Secondary . | . . . . . . . . . . . . . . . . . . . . . . Self-Inflicted Damage 94 | . . . . . . . . . . . . . 67 . . . . . . 27 . Shots 2 | . . . . . . . . . . . . . 1 . . . . . . 1 . Rammed . | . . . . . . . . . . . . . . . . . . . . . . Targets Rammed . | . . . . . . . . . . . . . . . . . . . . . . Kicked . | . . . . . . . . . . . . . . . . . . . . . . Crushed . | . . . . . . . . . . . . . . . . . . . . . . Highest Temperature 316 | . 3 16 162 . . . . 88 . 200 20 208 316 120 87 . 210 196 199 205 157 Average Temperature 52 | . 3 8 41 . . . . 62 . 57 7 17 56 47 50 . 59 70 77 46 72 Received Heat Transfer 4943 | . 384 39 513 87 . 54 18 444 414 174 108 216 654 128 . . 201 327 198 750 234 Siege Activations . | . . . . . . . . . . . . . . . . . . . . . . Martial Activations . | . . . . . . . . . . . . . . . . . . . . . . Shielding Activations . | . . . . . . . . . . . . . . . . . . . . . . Robots Disrupted 1 | . . . . . . . . . . . . . . . . . . . . 1 . Combat Hostiles 1 | . . . . . . . . . . . . . . . . . . . . 1 . Robots Corrupted . | . . . . . . . . . . . . . . . . . . . . . . Combat Hostiles . | . . . . . . . . . . . . . . . . . . . . . . Parts Fried 1 | . . . . . . . . . . . . . . . . . . . . 1 . Impact Corruptions . | . . . . . . . . . . . . . . . . . . . . . . Robots Melted 13 | . . . . . . . . . . . . . 2 . . . . 1 . 1 9 Combat Hostiles 12 | . . . . . . . . . . . . . 2 . . . . 1 . 1 8 Parts Melted 175 | . . 2 3 2 . . . . 9 9 7 10 28 1 . . 9 24 11 16 44 Heat Transferred 74123 | . 407 629 2627 444 . . . . 3663 3447 1665 5047 13147 2273 87 . 5392 6862 4987 12496 10950 Parts Sabotaged 5 | . . . . . . . . . . . . . . . . . . . . . 5 Parts Stolen . | . . . . . . . . . . . . . . . . . . . . . . Parts Stripped . | . . . . . . . . . . . . . . . . . . . . . . Power Chain Reactions . | . . . . . . . . . . . . . . . . . . . . . . Alert | -11 -10 -10 -9 -9 -9 -8 -8 -8 -8 -8 -8 -8 -7 -7 -7 -7 -6 -6 -6 -6 -6 ------- Run | Yrd Mat Min Mat Min Exi Min Mat Gar Mat Gar Mat Gar Fac Low Low Dat Pro Fac Gar Fac Ext Maximum Alert Level 5 | . 3 2 4 3 . 1 1 4 4 5 5 5 5 . . . . 4 5 5 5 Low Security (%) 8 | 100 43 . 1 . . 33 76 8 . . . . . . . . . . . . . Level 1 8 | . 25 15 13 . . 66 23 17 . . . . . . . . . 5 . . . Level 2 13 | . 28 84 15 53 . . . 25 10 . . . . . . . . 14 . . . Level 3 22 | . 3 . 35 46 . . . 31 86 27 35 3 . . . . . 68 22 . . Level 4 14 | . . . 34 . . . . 16 2 35 52 30 12 . . . . 11 15 13 . Level 5 10 | . . . . . . . . . . 36 12 65 4 . . . . . 62 4 9 High Security 21 | . . . . . . . . . . . . . 83 . . . . . . 81 90 Max Security . | . . . . . . . . . . . . . . . . . . . . . . Sterilizations 1 | . . . . . . . . . . . . . . . . . . . . 1 . Peak Influence 5575 | 10 727 585 1396 776 . 276 218 1234 1209 1899 1631 2632 4496 . . . . 1243 2400 5575 4749 Initial 2731 | . . 280 208 539 . . 79 137 601 781 925 1053 1381 . . . . 329 864 1246 2731 Average 1458 | 1 295 488 856 678 . 186 141 688 907 1390 1223 1857 2764 . . . . 853 1800 3300 3585 Influence Increases 24425 | 20 1253 385 1676 435 20 366 183 1157 1448 1138 826 1599 3245 205 80 . 755 1276 1591 4539 2228 Destroy 0b10 Robot/C 14720 | . 760 300 980 320 . 280 120 800 960 640 400 900 1800 200 60 . 620 640 880 2700 1360 Destroy 0b10 Robot/NC 415 | 20 25 5 50 . 20 . . . 20 5 55 . 45 5 . . . 35 5 90 35 Destroy Leader 2328 | . 172 50 304 40 . 50 40 40 252 30 126 50 294 . 10 . 70 172 50 436 142 Allied During Kill 1215 | . . . 25 . . 21 19 4 . 14 133 207 3 . 10 . 65 32 192 137 353 Trap Triggered on 0b10 160 | . . . . . . . . 10 40 . 20 . 30 . . . . 50 . 10 . Successful Hack 275 | . 5 . 24 . . . 4 28 31 49 3 32 38 . . . . 32 . 10 19 Select Force Hacks 680 | . 210 . 270 . . . . . 110 . 30 . 30 . . . . 30 . . . Disable Machine 900 | . . . 15 15 . . . 15 15 15 15 15 315 . . . . 105 60 300 15 Anti-Garrison Action 1250 | . . . . . . . . 200 . 250 . 350 . . . . . . 300 150 . Destroy Structure 847 | . 6 . 8 . . . . 45 5 75 14 30 180 . . . . 60 89 301 34 Partial Spotted 180 | . . 15 . . . 15 . . . 15 30 . 15 . . . . 45 . 30 15 Lose Combat Pursuer 1455 | . 75 15 . 60 . . . 15 15 45 . 15 495 . . . . 75 15 375 255 Influence Decreases 19676 | 20 534 569 827 1099 740 160 177 135 1479 442 1104 588 1381 1910 672 2199 232 564 451 1339 3054 Entered New Map 15314 | . . 439 327 845 720 . 127 75 633 422 974 568 1251 1664 532 2199 . 194 371 1129 2844 Time Decay 3202 | 20 534 130 440 254 20 160 30 . 356 . 130 . 90 246 140 . 212 310 . 110 20 Lost Part 50 | . . . . . . . . . . . . . . . . . . . . 40 10 Lost Ally 660 | . . . 60 . . . 20 60 40 20 . 20 40 . . . 20 60 80 60 180 Purge Threat 450 | . . . . . . . . . 450 . . . . . . . . . . . . Squads Dispatched 158 | . 12 . 16 . . . 1 . 11 . 4 . 38 . . . 1 13 . 47 15 Investigation 45 | . 11 . 13 . . . . . 4 . 3 . 3 . . . . 6 . 4 1 Extermination 2 | . . . . . . . . . . . . . . . . . . 2 . . . Reinforcement 14 | . 1 . 3 . . . . . 5 . . . 2 . . . . 2 . 1 . Assault 84 | . . . . . . . . . 1 . . . 32 . . . 1 1 . 35 14 Garrison 13 | . . . . . . . 1 . 1 . 1 . 1 . . . . 2 . 7 . Intercept . | . . . . . . . . . . . . . . . . . . . . . . Searches Triggered . | . . . . . . . . . . . . . . . . . . . . . . Unchained Authorized 1 | . . . . . . . . . . . . . . . . . . . . . 1 Construction Impeded 2 | . . . . . . . . . 2 . . . . . . . . . . . . Haulers Reinforced . | . . . . . . . . . . . . . . . . . . . . . . Active Scanning Responses . | . . . . . . . . . . . . . . . . . . . . . . Cargo Convoy Interrupts . | . . . . . . . . . . . . . . . . . . . . . . Stealth | -11 -10 -10 -9 -9 -9 -8 -8 -8 -8 -8 -8 -8 -7 -7 -7 -7 -6 -6 -6 -6 -6 --------- Run | Yrd Mat Min Mat Min Exi Min Mat Gar Mat Gar Mat Gar Fac Low Low Dat Pro Fac Gar Fac Ext Distress Signals 22 | . 1 . 4 . . . . . 4 1 3 . 2 . . . . 3 . 4 . Communications Jammed . | . . . . . . . . . . . . . . . . . . . . . . Distress Signals . | . . . . . . . . . . . . . . . . . . . . . . Times Spotted 996 | . 58 18 61 18 . 14 8 40 64 33 27 41 194 13 3 . 30 47 42 177 108 Peak Tracking Total 29 | . 5 3 7 6 . 4 5 5 9 5 5 6 29 7 3 . 9 5 9 12 26 Tactical Retreats 47 | . 2 1 . 2 . . . 1 1 1 . 1 11 . . . . 3 1 14 9 Traps | -11 -10 -10 -9 -9 -9 -8 -8 -8 -8 -8 -8 -8 -7 -7 -7 -7 -6 -6 -6 -6 -6 ------- Run | Yrd Mat Min Mat Min Exi Min Mat Gar Mat Gar Mat Gar Fac Low Low Dat Pro Fac Gar Fac Ext Traps Triggered 31 | . 1 . 3 . . . . 10 3 7 1 2 . . . . . . 1 2 1 Indirectly . | . . . . . . . . . . . . . . . . . . . . . . Trap Hack Attempts . | . . . . . . . . . . . . . . . . . . . . . . Triggered . | . . . . . . . . . . . . . . . . . . . . . . Disarmed . | . . . . . . . . . . . . . . . . . . . . . . Reprogrammed . | . . . . . . . . . . . . . . . . . . . . . . Reused 16 | . . . . . . . . 1 4 . 2 . 3 . . . . 5 . 1 . Traps Reconfigurated 113 | . . . . . . . . 19 17 9 7 14 7 . . . . 21 12 1 6 Traps Extracted . | . . . . . . . . . . . . . . . . . . . . . . Installed . | . . . . . . . . . . . . . . . . . . . . . . Triggered 16 | . . . . . . . . 1 4 . 2 . 3 . . . . 5 . 1 . Machines | -11 -10 -10 -9 -9 -9 -8 -8 -8 -8 -8 -8 -8 -7 -7 -7 -7 -6 -6 -6 -6 -6 ---------- Run | Yrd Mat Min Mat Min Exi Min Mat Gar Mat Gar Mat Gar Fac Low Low Dat Pro Fac Gar Fac Ext Machines Disabled 88 | . . . 1 1 . . . 5 1 8 1 8 21 1 1 . . 7 9 23 1 Max in Single Turn 5 | . . . 1 1 . . . 1 1 1 1 1 5 1 1 . . 5 1 4 1 Garrison Access 3 | . . . . . . . . . . . . . . . . . . 1 . 2 . Garrison Relay 21 | . . . . . . . . 4 . 5 . 7 . . . . . . 5 . . Machines Repaired . | . . . . . . . . . . . . . . . . . . . . . . Machines Dismantled . | . . . . . . . . . . . . . . . . . . . . . . Machines Sabotaged 7 | . 3 . 3 . . . . . 1 . . . . . . . . . . . . Overloaded Fab Kills . | . . . . . . . . . . . . . . . . . . . . . . Hacking | -11 -10 -10 -9 -9 -9 -8 -8 -8 -8 -8 -8 -8 -7 -7 -7 -7 -6 -6 -6 -6 -6 --------- Run | Yrd Mat Min Mat Min Exi Min Mat Gar Mat Gar Mat Gar Fac Low Low Dat Pro Fac Gar Fac Ext Machines Accessed 100 | . 10 1 12 1 2 . 1 2 15 4 7 3 7 1 . 4 . 16 1 7 6 Terminals 62 | . 7 . 6 . . . . 2 12 4 4 3 3 . . . . 8 1 6 6 Fabricators 7 | . . . . . . . . . . . . . 3 . . . . 4 . . . Repair Stations 4 | . 1 . 2 . . . . . . . 1 . . . . . . . . . . Recycling Units 7 | . 2 . 2 . . . . . 2 . . . . . . . . 1 . . . Scanalyzers 5 | . . . 2 . . . . . . . 1 . 1 . . . . 1 . . . Garrison Access 6 | . . . . . . . 1 . 1 . 1 . . . . . . 2 . 1 . Total Hacks 204 | . 17 1 25 1 2 . 1 3 33 4 12 7 10 1 . 26 . 33 2 12 14 Successful 121 | . 12 1 15 1 2 . 1 2 20 4 6 2 5 1 . 26 . 16 . 3 4 Failed 82 | . 5 . 10 . . . . 1 12 . 6 5 5 . . . . 17 2 9 10 Catastrophic 14 | . . . 2 . . . . . 2 . . 1 2 . . . . 1 1 4 1 Database Lockouts 1 | . . . . . . . . . 1 . . . . . . . . . . . . Manual 118 | . 13 . 17 . 2 . . . 29 . 9 . 5 . . . . 18 . 10 15 Terminals 134 | . 13 . 19 . . . . 3 30 4 9 7 5 . . . . 17 2 11 14 Fabricators 15 | . . . . . . . . . . . . . 4 . . . . 11 . . . Repair Stations 4 | . 1 . 2 . . . . . . . 1 . . . . . . . . . . Recycling Units 8 | . 3 . 2 . . . . . 2 . . . . . . . . 1 . . . Scanalyzers 5 | . . . 2 . . . . . . . 1 . 1 . . . . 1 . . . Garrison Access 7 | . . . . . . . 1 . 1 . 1 . . . . . . 3 . 1 . Terminal Hacks 51 | . 2 1 2 1 2 . . 2 6 4 . 2 . 1 . 26 . . . . 2 Record 12 | . . . . . 1 . . . . . . . . . . 11 . . . . . Part Schematic 8 | . . . . . . . . . . . . . . . . 8 . . . . . Robot Schematic 4 | . . . . . . . . . . . . . . . . 4 . . . . . Robot Analysis 5 | . 1 . . . . . . . 2 . . . . . . . . . . . 2 Prototype ID Bank 3 | . . . . . . . . . . . . . . . . 3 . . . . . Open Door 4 | . . 1 . 1 . . . . . 1 . . . 1 . . . . . . . Branch Access Points 1 | . . . 1 . . . . . . . . . . . . . . . . . . Emergency Access Points 2 | . . . . . . . . 1 . 1 . . . . . . . . . . . Garrison Index 1 | . . . . . . . . . 1 . . . . . . . . . . . . Unreport Threat 3 | . . . . . . . . . 3 . . . . . . . . . . . . Locate Traps 1 | . . . 1 . . . . . . . . . . . . . . . . . . Hauler Manifests 1 | . 1 . . . . . . . . . . . . . . . . . . . . Garrison Registry 1 | . . . . . . . . . . 1 . . . . . . . . . . . Patrol Navigation 3 | . . . . . . . . 1 . 1 . 1 . . . . . . . . . Security Stations 1 | . . . . . . . . . . . . 1 . . . . . . . . . Proto ID Catalog 1 | . . . . . 1 . . . . . . . . . . . . . . . . Fabricator Hacks 8 | . . . . . . . . . . . . . 3 . . . . 5 . . . Network Status 1 | . . . . . . . . . . . . . 1 . . . . . . . . Load Schematic 3 | . . . . . . . . . . . . . . . . . . 3 . . . Build 4 | . . . . . . . . . . . . . 2 . . . . 2 . . . Repair Station Hacks . | . . . . . . . . . . . . . . . . . . . . . . Recycling Unit Hacks . | . . . . . . . . . . . . . . . . . . . . . . Scanalyzer 1 | . . . . . . . . . . . . . . . . . . 1 . . . Retrieve Study 1 | . . . . . . . . . . . . . . . . . . 1 . . . Garrison Access Hacks 6 | . . . . . . . 1 . 1 . 1 . . . . . . 2 . 1 . Unlock Access 4 | . . . . . . . 1 . 1 . 1 . . . . . . 1 . . . Seal Access 2 | . . . . . . . . . . . . . . . . . . 1 . 1 . Unauthorized Hacks 55 | . 10 . 13 . . . . . 13 . 5 . 2 . . . . 8 . 2 2 Terminals 40 | . 7 . 7 . . . . . 11 . 3 . 1 . . . . 7 . 2 2 Assimilate 6 | . . . . . . . . . 4 . . . . . . . . 2 . . . Botnet 18 | . . . 1 . . . . . 5 . 3 . 1 . . . . 4 . 2 2 Disrupt 1 | . . . . . . . . . . . . . . . . . . 1 . . . Operators 1 | . . . . . . . . . 1 . . . . . . . . . . . . Sabotage 14 | . 7 . 6 . . . . . 1 . . . . . . . . . . . . Fabricators . | . . . . . . . . . . . . . . . . . . . . . . Repair Stations 4 | . 1 . 2 . . . . . . . 1 . . . . . . . . . . Patch 4 | . 1 . 2 . . . . . . . 1 . . . . . . . . . . Recycling Units 7 | . 2 . 2 . . . . . 2 . . . . . . . . 1 . . . Tunnel 7 | . 2 . 2 . . . . . 2 . . . . . . . . 1 . . . Scanalyzers 4 | . . . 2 . . . . . . . 1 . 1 . . . . . . . . Extract 4 | . . . 2 . . . . . . . 1 . 1 . . . . . . . . Garrison Access . | . . . . . . . . . . . . . . . . . . . . . . Data Cores Recovered 4 | . . . . . . . . . . . 1 . . . . . . 1 . 1 1 Used 1 | . . . . . . . . . . . . . . . . . . . . 1 . Hacking Detections 51 | . 2 . 5 . . . . 1 10 1 3 3 5 . . . . 10 1 5 5 Full Trace Events 14 | . . . . . . . . . 1 . . 1 2 . . . . 5 1 3 1 Feedback Events 2 | . . . . . . . . . . . . . . . . . . . 1 1 . Corruption 2 | . . . . . . . . . . . . . . . . . . . 1 1 . Feedback Blocked . | . . . . . . . . . . . . . . . . . . . . . . Robot Schematics Acquired 4 | . . . . . . . . . . . . . . . . 4 . . . . . Robots Built 2 | . . . . . . . . . . . . . . . . . . 2 . . . Authchips . | . . . . . . . . . . . . . . . . . . . . . . Time 76 | . . . . . . . . . . . . . . . . . . 76 . . . Total Robot Build Rating 10 | . . . . . . . . . . . . . . . . . . 10 . . . Part Schematics Acquired 18 | . . . 2 . . . . . . . 5 . 3 . . 8 . . . . . Parts Built 4 | . . . . . . . . . . . . . 3 . . . . 1 . . . Authchips . | . . . . . . . . . . . . . . . . . . . . . . Time 170 | . . . . . . . . . . . . . 94 . . . . 76 . . . Total Part Build Rating 20 | . . . . . . . . . . . . . 15 . . . . 5 . . . Part Studies Acquired 1 | . . . . . . . . . . . . . . . . . . 1 . . . Parts Repaired . | . . . . . . . . . . . . . . . . . . . . . . Time . | . . . . . . . . . . . . . . . . . . . . . . Parts Recycled . | . . . . . . . . . . . . . . . . . . . . . . Recycled Matter . | . . . . . . . . . . . . . . . . . . . . . . Retrieved Matter . | . . . . . . . . . . . . . . . . . . . . . . Retrieved Components . | . . . . . . . . . . . . . . . . . . . . . . Parts Scanalyzed . | . . . . . . . . . . . . . . . . . . . . . . Part Schematics Acquired . | . . . . . . . . . . . . . . . . . . . . . . Parts Damaged . | . . . . . . . . . . . . . . . . . . . . . . Bothacking | -11 -10 -10 -9 -9 -9 -8 -8 -8 -8 -8 -8 -8 -7 -7 -7 -7 -6 -6 -6 -6 -6 ------------ Run | Yrd Mat Min Mat Min Exi Min Mat Gar Mat Gar Mat Gar Fac Low Low Dat Pro Fac Gar Fac Ext Used RIF Installer . | . . . . . . . . . . . . . . . . . . . . . . Robots Hacked . | . . . . . . . . . . . . . . . . . . . . . . Non-combat . | . . . . . . . . . . . . . . . . . . . . . . Combat . | . . . . . . . . . . . . . . . . . . . . . . Robot Hacks Applied . | . . . . . . . . . . . . . . . . . . . . . . Relay Couplers Released 37 | . . . . . . . . 8 . 9 . 11 . . . . . . 9 . . Machine Destruction 37 | . . . . . . . . 8 . 9 . 11 . . . . . . 9 . . Fabnet Peak Effective % . | . . . . . . . . . . . . . . . . . . . . . . Robots Rewired 23 | . . . . . 4 . . 2 . 2 . 2 . 2 . . 2 . 2 . 7 Allies Hacked 5 | . . . . . . . . . . . . 4 . . . . . . . . 1 Hacks Repelled . | . . . . . . . . . . . . . . . . . . . . . . Allies | -11 -10 -10 -9 -9 -9 -8 -8 -8 -8 -8 -8 -8 -7 -7 -7 -7 -6 -6 -6 -6 -6 -------- Run | Yrd Mat Min Mat Min Exi Min Mat Gar Mat Gar Mat Gar Fac Low Low Dat Pro Fac Gar Fac Ext Total Allies 44 | . . 3 . 1 4 . . 2 4 4 . 2 . 2 . . 2 4 6 . 10 Largest Group 9 | . . 3 3 1 4 4 2 2 3 3 3 5 2 2 2 2 3 3 5 3 9 Highest-Rated Group 291 | . . 40 40 31 58 58 42 56 30 86 86 126 51 60 60 60 91 91 291 216 266 Highest-Rated Ally 159 | . . 16 16 31 31 21 21 40 10 39 39 39 31 30 30 30 32 32 95 95 159 Initial Warlord ECA Mod 27 | . . . . . . . . . 6 6 13 13 21 21 21 21 20 20 20 27 27 Total Orders 12 | . . . . . . 5 . . 2 . . . . . . . . 1 4 . . STAY 6 | . . . . . . 2 . . 1 . . . . . . . . 1 2 . . FOLLOW 6 | . . . . . . 3 . . 1 . . . . . . . . . 2 . . Ally Attacks 229 | . . . 23 . . 11 7 9 . 7 38 35 2 . 6 . 2 6 26 25 32 Total Damage 4623 | . . . 259 . . 162 153 192 . 96 587 555 . . 163 . 30 118 729 996 583 Kills 36 | . . . 4 . . 3 3 1 . 1 6 4 . . 3 . . . 5 5 1 Allies Corrupted . | . . . . . . . . . . . . . . . . . . . . . . Allies Melted 1 | . . . . . . . . . . . . . . . . . . 1 . . . Intel | -11 -10 -10 -9 -9 -9 -8 -8 -8 -8 -8 -8 -8 -7 -7 -7 -7 -6 -6 -6 -6 -6 ------- Run | Yrd Mat Min Mat Min Exi Min Mat Gar Mat Gar Mat Gar Fac Low Low Dat Pro Fac Gar Fac Ext Active Infowar (turns) 8549 | 22 1505 276 1080 545 282 330 72 1107 809 783 279 642 620 . . . . 196 . 1 . Terrain 5534 | 14 1505 276 1080 545 257 330 72 1107 153 . . . . . . . . 195 . . . Seismic 8351 | 22 1505 276 1079 545 282 330 72 1107 809 783 279 642 620 . . . . . . . . Spoofing 1 | . . . . . . . . . . . . . . . . . . . . 1 . ECM 1 | . . . . . . . . . . . . . . . . . . 1 . . . Robot Analysis Total 5 | . 1 . . . . . . . 2 . . . . . . . . . . . 2 Derelict Logs Recovered 12 | . . 2 . 1 . . . . . . . . . 3 3 . 3 . . . . Drone Launches . | . . . . . . . . . . . . . . . . . . . . . . Drone Recoveries . | . . . . . . . . . . . . . . . . . . . . . . Exploration | -11 -10 -10 -9 -9 -9 -8 -8 -8 -8 -8 -8 -8 -7 -7 -7 -7 -6 -6 -6 -6 -6 ------------- Run | Yrd Mat Min Mat Min Exi Min Mat Gar Mat Gar Mat Gar Fac Low Low Dat Pro Fac Gar Fac Ext Turns Passed 13433 | 96 1505 276 1080 545 282 330 72 1107 809 783 279 642 1173 529 297 22 477 680 599 1259 591 Spaces Moved 20401 | 81 1293 637 1584 1117 538 709 96 1220 1061 922 408 812 1623 1432 1036 78 892 1253 825 2210 574 Core 19 | 19 . . . . . . . . . . . . . . . . . . . . . Treads . | . . . . . . . . . . . . . . . . . . . . . . Legs . | . . . . . . . . . . . . . . . . . . . . . . Wheels 788 | 62 726 . . . . . . . . . . . . . . . . . . . . Hover . | . . . . . . . . . . . . . . . . . . . . . . Flight 19594 | . 567 637 1584 1117 538 709 96 1220 1061 922 408 812 1623 1432 1036 78 892 1253 825 2210 574 Fastest Speed 20 | 50 34 29 29 29 29 29 29 27 26 26 25 25 23 20 23 23 23 23 23 23 23 Average Speed 27 | 79 60 30 29 29 29 29 29 28 26 26 25 25 23 22 23 23 23 23 23 23 23 Slowest Speed 122 | 100 122 34 29 29 29 29 29 29 29 26 26 25 25 23 23 23 23 23 23 24 23 Overloaded Moves 11 | . . . . . . . . . . . . . . 11 . . . . . . . Propulsion Burnouts . | . . . . . . . . . . . . . . . . . . . . . . Robots Hopped 151 | . 3 5 21 19 . 4 . 1 21 . 7 . 12 2 2 . . 15 1 35 3 Potential Cave-ins . | . . . . . . . . . . . . . . . . . . . . . . Cave-ins Triggered . | . . . . . . . . . . . . . . . . . . . . . . Exploration Rate (%) 74 | 5 99 90 97 99 89 98 11 93 94 90 50 84 30 98 96 69 95 42 91 51 71 Regions Visited 21 Branch Regions 9 Pre-discovered Areas 11 | . 2 . 2 . . . . . 2 . . . . 1 1 1 1 1 . . . Known Exits Taken 11 | . . . 1 . . . 1 . 1 . 1 . 1 1 1 1 1 1 . 1 . Unknown Exits Taken 6 | 1 1 1 . 1 1 1 . . . . . . . . . . . . . . . Scrap Searched 14 | . . . . 2 . 2 . . . . . . . 5 4 . 1 . . . . Spaces Dug 10 | . . . . . . . . . . . . . 1 . 4 . . 1 1 2 1 Terrain Destroyed 807 | . . . 3 . . . . . . . 3 . 234 5 5 . 20 77 12 409 39 Melee . | . . . . . . . . . . . . . . . . . . . . . . Projectile 227 | . . . 3 . . . . . . . 3 . 28 5 5 . 20 22 12 90 39 AOE 580 | . . . . . . . . . . . . . 206 . . . . 55 . 319 . Terrain Rammed . | . . . . . . . . . . . . . . . . . . . . . . Walls Destroyed . | . . . . . . . . . . . . . . . . . . . . . . Machines Disabled . | . . . . . . . . . . . . . . . . . . . . . . Actions | -11 -10 -10 -9 -9 -9 -8 -8 -8 -8 -8 -8 -8 -7 -7 -7 -7 -6 -6 -6 -6 -6 --------- Run | Yrd Mat Min Mat Min Exi Min Mat Gar Mat Gar Mat Gar Fac Low Low Dat Pro Fac Gar Fac Ext Total 25494 | 94 1785 673 1958 1240 648 794 125 1755 1387 1297 518 1082 2089 1592 1083 81 1061 1520 1144 2669 899 Wait 2052 | . 293 11 192 58 29 58 9 173 159 174 58 78 162 94 29 4 37 146 134 92 62 Move 20092 | 80 1286 626 1543 1080 537 700 95 1217 1019 920 393 811 1599 1427 1031 77 891 1223 822 2146 569 Hop 136 | . 3 5 19 17 . 4 . 1 20 . 7 . 11 2 2 . . 14 1 28 2 Pick Up 24 | . 7 . 3 2 . . . 2 . . . . 4 1 . . . 1 . 2 2 Fast Attach 65 | 7 4 1 8 4 1 . . 1 12 1 1 3 1 . 1 . . 1 . 14 5 Attach 3 | . . . . . 1 . . 1 . . . . . . . . . . . 1 . Detach 1 | . . . . . 1 . . . . . . . . . . . . . . . . Swap 72 | . 6 1 10 . 1 . 1 . 4 3 3 . 16 5 1 . . 8 4 9 . Drop 60 | . 9 1 10 6 1 . . 1 2 1 1 . 9 2 . . . 1 1 11 4 Fire 1600 | 7 116 18 115 46 9 21 8 168 90 80 27 80 198 22 5 . 62 73 97 255 103 Melee . | . . . . . . . . . . . . . . . . . . . . . . Ram . | . . . . . . . . . . . . . . . . . . . . . . Kick . | . . . . . . . . . . . . . . . . . . . . . . Crush . | . . . . . . . . . . . . . . . . . . . . . . Escape Stasis 237 | . . . . . . . . 119 . 67 . 30 . . . . . . 15 . 6 Rewire 246 | . . . . . 51 . . 9 . 9 . 25 . 13 . . 25 . 11 . 103 Trap . | . . . . . . . . . . . . . . . . . . . . . . Miscellaneous 906 | . 61 10 58 27 17 11 12 63 81 42 28 55 89 26 14 . 46 53 59 111 43 Route ------- -11/Scrapyard -10/Materials (discovered 5 exits: *Mat x3 / *Min / [*Sub]) -10/Mines (discovered 3 exits: *Mat x2 / [*Sub]) -9/Materials (discovered 5 exits: *Mat x3 / *Min x2) -9/Mines (discovered 3 exits: *Mat x2 / *Exi) -9/Exiles -8/Mines (discovered 2 exits: *Mat x2) -8/Materials -8/Garrison (discovered 3 exits: *Mat x3) -8/Materials (discovered 5 exits: *Fac x2 / [*Sto x2] / Gar) -8/Garrison (discovered 3 exits: *Mat x3) -8/Materials (discovered 2 exits: [*Sto] / Gar) -8/Garrison (discovered 3 exits: *Fac x3) -7/Factory (discovered 2 exits: *Fac / *Low) -7/Lower Caves -7/Lower Caves (discovered 2 exits: *Fac / *Dat) -7/Data Miner -6/Proximity Caves -6/Factory (discovered 4 exits: *Fac x2 / *Ext / Gar) -6/Garrison (discovered 3 exits: *Fac x3) -6/Factory (discovered 4 exits: *Fac x3 / *Ext) -6/Extension History --------- Turn | Location | Event 1 | -11/Scrapyard | Upgraded with Propulsion slot (x1) 1 | -11/Scrapyard | Upgraded with Utility slot (x1) 1 | -11/Scrapyard | Upgraded with Weapon slot (x1) 8 | -11/Scrapyard | Discovered new exit (range 14) 97 | -11/Scrapyard | Entered Materials 165 | -10/Materials | Discovered new exit (range 7) 266 | -10/Materials | Discovered new exit (range 12) 306 | -10/Materials | Build established: Mutant 591 | -10/Materials | Reached level 2 597 | -10/Materials | Derelicts attacked the area 627 | -10/Materials | Discovered new exit (range 12) 667 | -10/Materials | Discovered new exit (range 7) 787 | -10/Materials | Discovered new exit (range 16) 831 | -10/Materials | Upgraded with Utility slot (x1) 955 | -10/Materials | Reached level 3 1010 | -10/Materials | Upgraded with Utility slot (x1) 1268 | -10/Materials | Upgraded with Propulsion slot (x1) 1332 | -10/Materials | Reached level 4 1439 | -10/Materials | Upgraded with Weapon slot (x1) 1602 | -10/Materials | Entered Mines 1604 | -10/Mines | Reached level 5 1663 | -10/Mines | Learned Materials security intel 1674 | -10/Mines | Met a Derelict who couldn't figure out how to use a Trap Extractor 1675 | -10/Mines | Destroyed 8 combat bots 1682 | -10/Mines | Learned Materials emergency access door positions 1696 | -10/Mines | Upgraded with Propulsion slot (x1) 1745 | -10/Mines | Assembled infested the area 1775 | -10/Mines | Destroyed 7 combat bots 1780 | -10/Mines | Discovered new exit (range 4) 1810 | -10/Mines | A weapon hastily lodged in a ceiling crevice suddenly fell to the ground 1828 | -10/Mines | Discovered new exit (range 12) 1830 | -10/Mines | Received a Rocket Launcher from a helpful Derelict 1853 | -10/Mines | Discovered new exit (range 9) 1874 | -10/Mines | Assisted by bots powering up and referring to "LRC-V3" 1878 | -10/Mines | Entered Materials 1878 | -9/Materials | Accompanied by 3 allies 1880 | -9/Materials | Reached level 6 1911 | -9/Materials | Reached level 7 1997 | -9/Materials | Discovered new exit (range 9) 2003 | -9/Materials | Discovered new exit (range 16) 2044 | -9/Materials | Reached level 8 2101 | -9/Materials | Destroyed 11 combat bots 2108 | -9/Materials | Discovered new exit (range 16) 2340 | -9/Materials | Reached level 9 2422 | -9/Materials | Upgraded with Power slot (x1) 2452 | -9/Materials | Build established: Sprinter 2496 | -9/Materials | Discovered new exit (range 5) 2541 | -9/Materials | Identified exit to Mines 2641 | -9/Materials | Destroyed 7 combat bots 2686 | -9/Materials | Upgraded with Utility slot (x1) 2704 | -9/Materials | Reached level 10 2784 | -9/Materials | Build established: Scavenger-Sprinter 2958 | -9/Materials | Entered Mines 3053 | -9/Mines | Excavation squad dispatched 3053 | -9/Mines | A large section of the Mines collapsed 3094 | -9/Mines | Learned location of 1 exit from Proximity Caves 3142 | -9/Mines | YI-UF0 nonchalantly dropped a Grenade Launcher on the ground 3160 | -9/Mines | Found the Drone Emporium 3160 | -9/Mines | Found Prototype Device 3160 | -9/Mines | Identified Bomb Drone Bay 3196 | -9/Mines | Deemed a non-threat by the Exiles lab entrance 3196 | -9/Mines | Discovered new exit (range 5) 3259 | -9/Mines | Destroyed YI-UF0 3342 | -9/Mines | Build established: Sprinter 3384 | -9/Mines | Discovered new exit (range 4) 3385 | -9/Mines | Escorted by a lone wolf Derelict 3414 | -9/Mines | Discovered new exit (range 7) 3503 | -9/Mines | Entered Exiles 3503 | -9/Exiles | Found Exiles lab destroyed 3503 | -9/Exiles | Accompanied by 1 ally 3535 | -9/Exiles | Opened EX-Vault 3536 | -9/Exiles | Found Trap Reconfigurator 3752 | -9/Exiles | Discovered new exit (range 14) 3785 | -9/Exiles | Entered Mines 3785 | -8/Mines | Accompanied by 4 allies 3787 | -8/Mines | Reached level 11 3916 | -8/Mines | Discovered new exit (range 11) 3946 | -8/Mines | Discovered new exit (range 7) 4115 | -8/Mines | Upgraded with Propulsion slot (x1) 4115 | -8/Mines | Entered Materials 4115 | -8/Materials | Accompanied by 2 allies 4117 | -8/Materials | Reached level 12 4134 | -8/Materials | Garrison activated, responded to threat 4179 | -8/Materials | Identified exit to Garrison 4187 | -8/Materials | Entered Garrison 4187 | -8/Garrison | Accompanied by 1 ally 4189 | -8/Garrison | Reached level 13 4223 | -8/Garrison | Triggered checkpoint 4338 | -8/Garrison | Destroyed 8 combat bots 4461 | -8/Garrison | Triggered checkpoint 4461 | -8/Garrison | Discovered new exit (range 15) 4508 | -8/Garrison | Garrison Relay disabled 4509 | -8/Garrison | Triggered checkpoint 4666 | -8/Garrison | Discovered new exit (range 16) 4673 | -8/Garrison | Triggered checkpoint 4760 | -8/Garrison | Garrison Relay disabled 4769 | -8/Garrison | Triggered checkpoint 4881 | -8/Garrison | Triggered checkpoint 4903 | -8/Garrison | Triggered checkpoint 4923 | -8/Garrison | Discovered new exit (range 13) 5008 | -8/Garrison | Reached level 14 5071 | -8/Garrison | Triggered checkpoint 5099 | -8/Garrison | Garrison Relay disabled 5108 | -8/Garrison | Garrison Relay disabled 5163 | -8/Garrison | Upgraded with Utility slot (x1) 5163 | -8/Garrison | Upgraded with Weapon slot (x1) 5187 | -8/Garrison | Triggered checkpoint 5294 | -8/Garrison | Entered Materials 5451 | -8/Materials | Destroyed 7 combat bots 5455 | -8/Materials | Discovered new exit (range 8) 5469 | -8/Materials | Build established: Scavenger-Sprinter 5672 | -8/Materials | Discovered new exit (range 11) 5694 | -8/Materials | First assault squad dispatched 5702 | -8/Materials | Discovered new exit (range 9) 5757 | -8/Materials | Central database locked down 5887 | -8/Materials | Reached level 15 5898 | -8/Materials | Discovered new exit (range 16) 6011 | -8/Materials | Destroyed 7 combat bots 6047 | -8/Materials | Lost 3 allies 6079 | -8/Materials | Garrison activated, responded to threat 6103 | -8/Materials | Identified exit to Garrison 6103 | -8/Materials | Entered Garrison 6109 | -8/Garrison | Destroyed 8 combat bots 6201 | -8/Garrison | Triggered checkpoint 6271 | -8/Garrison | Discovered new exit (range 13) 6319 | -8/Garrison | Garrison Relay disabled 6337 | -8/Garrison | Triggered checkpoint 6351 | -8/Garrison | Triggered checkpoint 6351 | -8/Garrison | Triggered checkpoint 6419 | -8/Garrison | Garrison Relay disabled 6423 | -8/Garrison | Triggered checkpoint 6434 | -8/Garrison | Garrison Relay disabled 6477 | -8/Garrison | Discovered new exit (range 3) 6547 | -8/Garrison | Triggered checkpoint 6575 | -8/Garrison | Garrison Relay disabled 6703 | -8/Garrison | Triggered checkpoint 6718 | -8/Garrison | Garrison Relay disabled 6725 | -8/Garrison | Rescued a captive Derelict 6726 | -8/Garrison | Rescued a captive Derelict 6751 | -8/Garrison | Discovered new exit (range 13) 6753 | -8/Garrison | Discovered new exit (range 50) 6753 | -8/Garrison | Discovered new exit (range 12) 6753 | -8/Garrison | Discovered new exit (range 66) 6796 | -8/Garrison | Attempted to access garrison exit controls, blocked by remote lockdown 6886 | -8/Garrison | Entered Materials 6886 | -8/Materials | Accompanied by 3 allies 6888 | -8/Materials | Discovered new exit (range 6) 7093 | -8/Materials | Reached level 16 7101 | -8/Materials | Upgraded with Utility slot (x1) 7112 | -8/Materials | Garrison activated, responded to threat 7142 | -8/Materials | Identified exit to Garrison 7155 | -8/Materials | Destroyed 12 combat bots 7165 | -8/Materials | Entered Garrison 7165 | -8/Garrison | Accompanied by 3 allies 7168 | -8/Garrison | Learned Factory security intel 7245 | -8/Garrison | Garrison Relay disabled 7263 | -8/Garrison | System corruption reached 10% 7309 | -8/Garrison | P-60 Hacker assimilated allied OB-EN6(h) 7389 | -8/Garrison | Discovered new exit (range 12) 7401 | -8/Garrison | Triggered checkpoint 7426 | -8/Garrison | Garrison Relay disabled 7445 | -8/Garrison | Triggered checkpoint 7560 | -8/Garrison | Discovered new exit (range 11) 7569 | -8/Garrison | Triggered checkpoint 7573 | -8/Garrison | Garrison Relay disabled 7601 | -8/Garrison | Triggered checkpoint 7632 | -8/Garrison | Discovered new exit (range 10) 7651 | -8/Garrison | Triggered checkpoint 7665 | -8/Garrison | Triggered checkpoint 7680 | -8/Garrison | Garrison Relay disabled 7695 | -8/Garrison | Garrison Relay disabled 7699 | -8/Garrison | Garrison Relay disabled 7701 | -8/Garrison | Garrison Relay disabled 7727 | -8/Garrison | Destroyed 12 combat bots 7731 | -8/Garrison | Triggered checkpoint 7807 | -8/Garrison | Entered Factory 7807 | -7/Factory | Accompanied by 2 allies 7834 | -7/Factory | Reached level 17 7971 | -7/Factory | Discovered new exit (range 11) 7984 | -7/Factory | Destroyed 7 combat bots 8005 | -7/Factory | High security lockdown imminent 8064 | -7/Factory | Fabricated Plasma Rifle (x2) 8072 | -7/Factory | Fabricated Gravmag Array? 8085 | -7/Factory | High security lockdown engaged 8133 | -7/Factory | Discovered new exit (range 16) 8372 | -7/Factory | Reached level 18 8393 | -7/Factory | Destroyed 10 combat bots 8428 | -7/Factory | Identified exit to Factory 8545 | -7/Factory | Destroyed 18 combat bots 8600 | -7/Factory | Core integrity fell below 50% 8630 | -7/Factory | Destroyed 12 combat bots 8720 | -7/Factory | Build established: Sprinter 8887 | -7/Factory | Garrison activated, responded to threat 8920 | -7/Factory | Identified exit to Lower Caves 8980 | -7/Factory | Entered Lower Caves 8982 | -7/Lower Caves | Attracted the attention of an 0b10 checkpoint 9024 | -7/Lower Caves | Ambushed by wild Derelicts 9062 | -7/Lower Caves | Attracted the attention of an 0b10 outpost 9084 | -7/Lower Caves | Met a Warlord Commander 9085 | -7/Lower Caves | Learned location of Warlord (-4) 9086 | -7/Lower Caves | Warlord Commander delivered Encrypted Comm Array 9095 | -7/Lower Caves | Found Encrypted Comm Array 9101 | -7/Lower Caves | Destroyed 11 combat bots 9128 | -7/Lower Caves | Encountered a Warlord checkpoint 9155 | -7/Lower Caves | Identified exit to Lower Caves 9224 | -7/Lower Caves | Learned Factory emergency access door positions 9272 | -7/Lower Caves | Learned Factory stockpile data 9509 | -7/Lower Caves | Entered another Lower Caves area 9509 | -7/Lower Caves | Accompanied by 2 allies 9511 | -7/Lower Caves | Reached level 19 9525 | -7/Lower Caves | Found Alien Artifact 9525 | -7/Lower Caves | Identified Dimensional Node Initializer 9525 | -7/Lower Caves | Initialized slip node 9551 | -7/Lower Caves | Learned location of Zion (-6) 9557 | -7/Lower Caves | Discovered exit to Factory (range 17) 9696 | -7/Lower Caves | Discovered new exit (range 16) 9699 | -7/Lower Caves | Identified exit to Data Miner 9734 | -7/Lower Caves | Learned Factory terminal intel 9806 | -7/Lower Caves | Entered Data Miner 9806 | -7/Data Miner | Accompanied by 2 allies 9806 | -7/Data Miner | Discovered new exit (range 6) 9811 | -7/Data Miner | Met Data Miner 9817 | -7/Data Miner | Learned location of Section 7 (-2) 9817 | -7/Data Miner | Acquired the access code to Warlord's prototype stash 9819 | -7/Data Miner | Received God Mode back door access code from Data Miner 9824 | -7/Data Miner | Identified exit to Proximity Caves 9828 | -7/Data Miner | Entered Proximity Caves 9828 | -6/Proximity Caves | Accompanied by 2 allies 9929 | -6/Proximity Caves | Attracted the attention of an 0b10 checkpoint 9941 | -6/Proximity Caves | Learned 8 Factory zone layouts 9950 | -6/Proximity Caves | Learned Factory stockpile data 10043 | -6/Proximity Caves | Destroyed 9 combat bots 10045 | -6/Proximity Caves | Attracted the attention of an 0b10 outpost 10106 | -6/Proximity Caves | Destroyed 9 combat bots 10184 | -6/Proximity Caves | Reached level 20 10198 | -6/Proximity Caves | Spotted B-75 Beast 10215 | -6/Proximity Caves | Destroyed B-75 Beast 10305 | -6/Proximity Caves | Entered Factory 10305 | -6/Factory | Accompanied by 3 allies 10306 | -6/Factory | Identified exit to Extension 10306 | -6/Factory | Identified exit to Factory 10309 | -6/Factory | Loaded intel: 28 terminal locations 10312 | -6/Factory | Upgraded with Utility slot (x1) 10334 | -6/Factory | Garrison activated, responded to threat 10413 | -6/Factory | Spotted B-75 Beast 10457 | -6/Factory | Destroyed B-75 Beast 10655 | -6/Factory | First assault squad dispatched 10742 | -6/Factory | Fabricated Gravity Neutralizer (x1) 10855 | -6/Factory | Discovered exit to Factory (range 12) 10917 | -6/Factory | Fabricated E-15 Imp? 10952 | -6/Factory | Reached level 21 10957 | -6/Factory | Garrison activated, responded to threat 10971 | -6/Factory | Identified exit to Garrison 10985 | -6/Factory | Entered Garrison 10985 | -6/Garrison | Accompanied by 2 allies 10998 | -6/Garrison | Rescued a captive Derelict 11004 | -6/Garrison | Rescued a captive Derelict 11036 | -6/Garrison | Garrison Relay disabled 11037 | -6/Garrison | Triggered checkpoint 11098 | -6/Garrison | Spotted B-75 Beast 11118 | -6/Garrison | Destroyed B-75 Beast 11141 | -6/Garrison | Triggered checkpoint 11184 | -6/Garrison | Destroyed 12 combat bots 11204 | -6/Garrison | Discovered new exit (range 7) 11257 | -6/Garrison | Triggered checkpoint 11262 | -6/Garrison | Garrison Relay disabled 11279 | -6/Garrison | Garrison Relay disabled 11287 | -6/Garrison | Destroyed 11 combat bots 11292 | -6/Garrison | Triggered checkpoint 11315 | -6/Garrison | Discovered new exit (range 16) 11333 | -6/Garrison | Garrison Relay disabled 11370 | -6/Garrison | Destroyed 10 combat bots 11373 | -6/Garrison | Identified exit to Factory 11399 | -6/Garrison | Triggered checkpoint 11409 | -6/Garrison | Garrison Relay disabled 11416 | -6/Garrison | Found embedded Infiltrators 11416 | -6/Garrison | Discovered exit to Factory (range 12) 11429 | -6/Garrison | Triggered checkpoint 11584 | -6/Garrison | Entered Factory 11584 | -6/Factory | Accompanied by 3 allies 11714 | -6/Factory | Reached level 22 11747 | -6/Factory | Garrison activated, responded to threat 11815 | -6/Factory | High security lockdown imminent 11895 | -6/Factory | High security lockdown engaged 11899 | -6/Factory | Garrison activated, responded to threat 12243 | -6/Factory | Destroyed 34 combat bots 12250 | -6/Factory | Garrison activated, responded to threat 12311 | -6/Factory | Destroyed 11 combat bots 12327 | -6/Factory | Discovered exit to Factory (range 16) 12479 | -6/Factory | Discovered exit to Factory (range 12) 12520 | -6/Factory | Reached level 23 12559 | -6/Factory | Core integrity fell below 50% 12584 | -6/Factory | Destroyed 21 combat bots 12672 | -6/Factory | Core integrity fell below 20% 12685 | -6/Factory | Sterilization system engaged 12685 | -6/Factory | Non-combat units ordered to evacuate 12703 | -6/Factory | Destroyed 9 combat bots 12768 | -6/Factory | Discovered exit to Factory (range 16) 12785 | -6/Factory | Combat units ordered to evacuate 12840 | -6/Factory | Discovered exit to Extension (range 4) 12843 | -6/Factory | Entered Extension 12857 | -6/Extension | Disrupted transfer network 12875 | -6/Extension | Unchained authorized (DW-4LL) 12897 | -6/Extension | High security lockdown imminent 12977 | -6/Extension | High security lockdown engaged 13037 | -6/Extension | Rescued a captive Derelict 13046 | -6/Extension | Rescued a captive Derelict 13053 | -6/Extension | Spotted B-75 Beast 13199 | -6/Extension | Spotted B-75 Beast 13200 | -6/Extension | Destroyed B-75 Beast 13239 | -6/Extension | Lost 6 allies 13242 | -6/Extension | Destroyed B-75 Beast 13348 | -6/Extension | Destroyed 53 combat bots 13409 | -6/Extension | Rescued A7 13425 | -6/Extension | Destroyed 8 combat bots 13434 | -6/Extension | Destroyed by Micro Antimatter Reactor chain reaction Last Messages --------------- 13400_ Used Protomatter to restore core integrity (+39, depleted) 13402_ Destroyed Imp. Heat Sink. 13404_ Destroyed Remote Datajack. 13404_ Shock Rifle melted. 13404_ P-60 Hacker destroyed. Door Terminal flashes as you approach. 13409_ A7: "I've been trapped here for some time now, I should probabl##AID::LRC-V3##I suddenly feel like you could use my help. Lead on." 13420_ System corrupted: Matter fused (-7). 13420_ Door Terminal disabled. 13423_ P-60 Hacker resets P-60 Hacker, system corruption cleaned. 13431_ P-60 Hacker IFF system glitched. 13432_ P-60 Hacker resets P-60 Hacker, system corruption cleaned. 13434_ Chain reaction triggered in Unknown Reactor. 13434_ P-60 Hacker destroyed. Map ----- +----------------------------------------------------+ | | | | | | | | | | | | | | | ####?????##?##???????????????????????? | | #?# ?##"##"####???????????????????? | | ###"# #???????????????????? | | #???????????????????? | | #???????????????????? | | ############????????? | | ### " #????????? | | ????#""%" #????????? | | ?????# " #????????? | | ####?# %= #????????? | | ### =%[ #????????? | | *%=[#???# #####????? | | #######%###### #????? | | # ##"! *%=%* =" #????? | | # #?# ==![ "########Y #????? | | #?#! ! #???????##/%!## #????? | | ###?# #???????#%[%|????????? | | ????# #???????##p##????????? | | ????# #???????#@!#?????????? | | ????# #???????####?????????? | | ????#############????????????????????? | | ?????????????????????????????????????? | | ?????????????????????????????????????? | | ?????????????????????????????????????? | | ?????????????????????????????????????? | | ?????????????????????????????????????? | | ?????????????????????????????????????? | | ?????????????????????????????????????? | | ?????????????????????????????????????? | | ?????????????????????????????????????? | | ?????????????????????????????????????? | | ?????????????????????????????????????? | | ?????????????????????????????????????? | | ?????????????????????????????????????? | | ?????????????????????????????????????? | | ?????????????????????????????????????? | | ?????????????????????????????????????? | | ?????????????????????????????????????? | | ?????????????????????????????????????? | | ?????????????????????????????????????? | | ?????????????????????????????????????? | | ?????????????????????????????????????? | | ?????????????????????????????????????? | +----------------------------------------------------+ Best States ------------- Heat Dissipation 127 Energy Generation 44 Energy Capacity 550 Matter Stores 300 Matter Capacity 300 Sight Range 17 Robot Scan Range 4 Terrain Scan Range 20 Terrain Scan Density 10 ECM Strength 1 Additional Mass Support 12 Base Temperature (-) 100 Armor Coverage 525 Resistance: KI 20 Resistance: EX 25 Propulsion Shielding 33 Weapon Cycling 30 Evasion (%) 65 Target Analysis 5 Armor Integrity Analysis 40 Particle Charging 20 Kinecelleration 30 Authchip Count 2 Item Schematics ----------------- Imp. Flight Unit | -9/Materials | Extracted Rocket Launcher | -9/Materials | Extracted Deuterium Engine | -8/Materials | Extracted Melee Analysis Suite | -8/Materials | Extracted Structural Scanner | -8/Materials | Extracted Carbon-fiber Leg | -8/Materials | Extracted Imp. Ion Engine | -8/Materials | Extracted Lrg. Battery | -7/Factory | Extracted Hvy. Particle Gun | -7/Factory | Extracted Transmission Jammer | -7/Factory | Extracted Combat Drone Bay | -7/Data Miner | Free Lgt. Regenerative Plating | -7/Data Miner | Free Gravity Neutralizer | -7/Data Miner | Free Biomechanical Wings | -7/Data Miner | Free Cld. Plasma Cannon | -7/Data Miner | Free Gyrokinetic Inverter | -7/Data Miner | Free Imp. Weapon Cycler | -7/Data Miner | Free Enh. Gauss Cannon | -7/Data Miner | Free Robot Schematics ------------------ G-50 Soldier | -7/Data Miner | Free A-15 Conveyor | -7/Data Miner | Free E-15 Imp | -7/Data Miner | Free S-27 Virus | -7/Data Miner | Free Fabricated ------------ Plasma Rifle | x2 | -7/Factory | Preloaded Gravmag Array | x1 | -7/Factory | Preloaded Gravity Neutralizer | x1 | -6/Factory E-15 Imp | x2 | -6/Factory Repaired ---------- Nothing Studied --------- Cesium-ion Thruster | -6/Factory | Hacked Alien Tech Used ----------------- Dimensional Node Initializer Achievements -------------- None Challenges ------------ None RPGLIKE | -11 -10 -10 -9 -9 -9 -8 -8 -8 -8 -8 -8 -8 -7 -7 -7 -7 -6 -6 -6 -6 -6 --------- Run | Yrd Mat Min Mat Min Exi Min Mat Gar Mat Gar Mat Gar Fac Low Low Dat Pro Fac Gar Fac Ext Levels Raised 22 | . 3 1 5 . . 1 1 2 1 . 1 . 2 . 1 . 1 1 . 2 . XP Earned 37046 | 3000 5753 1710 6468 801 67 1670 1450 1990 1447 840 432 808 3234 265 120 73 1453 1532 1213 1980 740 XP Spent 35870 | 2970 4200 1400 7730 200 . 1500 . 4100 200 500 2000 . 3635 . . . . 2940 720 1530 2245 Upgrades 69 | 10 6 2 14 1 . 2 . 4 1 1 1 . 13 . . . . 3 2 4 5 Power Slot 1 | . . . 1 . . . . . . . . . . . . . . . . . . Propulsion Slot 4 | 1 1 1 . . . 1 . . . . . . . . . . . . . . . Utility Slot 7 | 1 2 . 1 . . . . 1 . . 1 . . . . . . 1 . . . Weapon Slot 3 | 1 1 . . . . . . 1 . . . . . . . . . . . . . Core Integrity 11 | . . . . . . . . . . . . . 6 . . . . . . 2 3 Heat Dissipation 17 | 4 . . 7 . . . . . . . . . 2 . . . . 2 2 . . Energy Generation 3 | . . 1 . . . . . . . . . . . . . . . . . 2 . Mass Support 4 | . 2 . 2 . . . . . . . . . . . . . . . . . . Inventory Capacity 3 | 2 . . . . . . . . . . . . 1 . . . . . . . . Sight Range 1 | . . . . . . 1 . . . . . . . . . . . . . . . Sensor Range 2 | . . . . . . . . . . . . . 2 . . . . . . . . Ranged Accuracy 7 | 1 . . 3 . . . . 1 . . . . . . . . . . . . 2 KI Damage % 2 | . . . . 1 . . . 1 . . . . . . . . . . . . . TH Damage % 4 | . . . . . . . . . 1 1 . . 2 . . . . . . . . Protomatter Created 10099 | . 561 85 447 177 125 26 49 756 786 418 235 592 1634 149 . . 640 605 453 1388 973 Integrity Restored 18248 | . 1142 188 1062 459 344 182 243 1233 1664 803 510 1132 1796 585 309 . 929 1152 1237 2336 942 Core 13401 | . 872 180 678 186 210 156 163 817 1019 555 279 805 1484 585 210 . 533 1042 762 1923 942 Parts 4847 | . 270 8 384 273 134 26 80 416 645 248 231 327 312 . 99 . 396 110 475 413 . Protomatter Decayed 2886 | . 49 . 253 67 9 124 . 201 175 129 57 173 590 . . . 246 238 170 327 78 Game ------ Seed DynamicAssemblyStatue Manual? 0 Play Time 02:56:16 Cumulative 496.8 hours Start 2025.12.18 @ 17:46:13 End 2025.12.18 @ 20:41:41 Sessions 1 Manual Loads 0 Difficulty Rogue Special Mode Winter2019/RPGLIKE Game No. 186 Rogue 32 Adventurer 154 Explorer 0 Win Type - Total 20 Types 4/4/3/3/2/1/0/1/1/1 Lore% 94 Gallery% 86 Achievement% 61 Wizard Run 0 Options --------- Layout 2 ASCII 0 Keyboard 0 Movement Numpad Keybinds 0 Fullscreen 2 Font 24/Smallcaps Map View 50x44 Zoom Use 0% Tactical HUD 1 Map Filters NONE Filters NONE Steam 1 RUN: 6b160531-e143-493b-9290-0ad1d79d2ca7